bitfinex/quotes_SOLUSD_20250226
["timestamp","ask_amount","ask_price","bid_price","bid_amount"]
[1740568568403,101.1,140.45,140.42,0.03]
[1740568568706,81.1,140.45,140.42,0.03]
[1740568570909,3.61326192,140.44,140.42,0.03]
[1740568571715,20.0,140.43,140.42,0.03]
[1740568572709,3.61326192,140.44,140.42,0.03]
[1740568573212,20.0,140.43,140.42,0.03]
[1740568574001,20.0,140.44,140.42,0.03]
[1740568575609,81.1,140.47,140.42,0.03]
[1740568576489,3.60147997,140.46,140.42,0.03]
[1740568584035,0.063,140.47,140.42,0.03]
[1740568584206,0.063,140.47,140.43,1.6326]
[1740568584535,20.0,140.46,140.43,1.6326]
[1740568588910,20.0,140.45,140.43,1.6326]
[1740568599244,20.0,140.45,140.42,0.03]
[1740568604544,0.063,140.46,140.42,0.03]
[1740568612649,0.063,140.46,140.42,18.67964886]
[1740568615550,20.063,140.46,140.42,0.03]
[1740568628172,20.063,140.46,140.43,18.64964886]
[1740568628369,0.063,140.46,140.43,24.90964886]
[1740568633339,0.063,140.46,140.43,107.42372085]
[1740568633543,0.063,140.46,140.45,20.86509514]
[1740568633760,0.063,140.46,140.45,103.37916713]
[1740568636176,0.063,140.46,140.45,102.81052085]
[1740568636347,0.063,140.46,140.43,6.26]
[1740568636982,20.063,140.46,140.43,18.64964886]
[1740568637680,7.1827,140.46,140.43,18.64964886]
[1740568638851,0.063,140.46,140.43,18.64964886]
[1740568642282,7.1824,140.46,140.42,1.5669]
[1740568642468,0.063,140.46,140.43,0.56864628]
[1740568642669,0.063,140.46,140.44,18.64964886]
[1740568644484,0.063,140.46,140.44,101.16372085]
[1740568647481,0.063,140.46,140.45,19.21829514]
[1740568647681,0.063,140.46,140.45,101.73236713]
[1740568647885,0.063,140.46,140.45,101.16372085]
[1740568654491,0.063,140.46,140.45,108.28362085]
[1740568659692,0.063,140.46,140.45,108.85226713]
[1740568659990,0.063,140.46,140.45,252.94226713]
[1740568660706,0.063,140.5,140.48,0.56864628]
[1740568660908,0.063,140.5,140.49,33.73419514]
[1740568661074,0.063,140.5,140.49,252.44826713]
[1740568662501,11.12073373,140.57,140.51,18.64964886]
[1740568662671,3.64790243,140.58,140.54,0.56864628]
[1740568662881,3.64790243,140.58,140.54,6.82864628]
[1740568663078,20.0,140.59,140.54,6.82864628]
[1740568663279,7.1125,140.6,140.54,6.82864628]
[1740568663479,0.063,140.61,140.55,18.64964886]
[1740568663687,7.1749,140.61,140.55,101.16372085]
[1740568665785,7.1749,140.61,140.55,108.27852085]
[1740568665995,7.1749,140.61,140.55,101.16372085]
[1740568666493,7.1749,140.61,140.55,108.27852085]
[1740568667475,3.48682298,140.59,140.55,108.27852085]
[1740568671109,10.59972298,140.59,140.55,101.16372085]
[1740568674387,0.063,140.61,140.57,18.64964886]
[1740568674594,0.063,140.61,140.58,0.56864628]
[1740568674795,0.063,140.61,140.6,0.56864628]
[1740568675001,0.063,140.61,140.6,20.79059514]
[1740568676109,0.063,140.61,140.6,110.41696713]
[1740568676315,0.063,140.62,140.61,19.21829514]
[1740568676520,0.063,140.62,140.61,237.93236713]
[1740568677190,0.063,140.63,140.62,20.74009514]
[1740568678408,0.063,140.63,140.62,27.85139514]
[1740568680420,0.063,140.65,140.64,26.32859514]
[1740568680618,0.063,140.65,140.64,32.56859514]
[1740568680988,0.063,140.65,140.64,251.28266713]
[1740568681201,0.063,140.65,140.64,257.72836713]
[1740568683410,0.063,140.65,140.64,258.72836713]
[1740568683587,6.7943,140.74,140.66,0.56864628]
[1740568683791,6.7943,140.74,140.68,0.56864628]
[1740568684411,3.59134491,140.73,140.68,83.08271827]
[1740568684824,3.59134491,140.73,140.68,90.19081827]
[1740568685307,10.69724491,140.73,140.68,90.19081827]
[1740568689218,10.69724491,140.73,140.68,90.0486567]
[1740568689414,10.69724491,140.73,140.68,82.51407199]
[1740568689616,10.69724491,140.73,140.69,18.64964886]
[1740568694720,10.51974491,140.73,140.68,82.51407199]
[1740568697211,10.58274491,140.73,140.68,82.51407199]
[1740568698735,10.58274491,140.73,140.67,18.64964886]
[1740568710137,10.58274491,140.73,140.67,25.75834886]
[1740568710510,10.58274491,140.73,140.67,108.27242085]
[1740568711940,10.58274491,140.73,140.67,101.16372085]
[1740568714350,28.34724491,140.73,140.67,101.16372085]
[1740568716239,7.5662,140.72,140.66,0.03]
[1740568716440,20.0,140.69,140.66,0.03]
[1740568718247,7.1083,140.68,140.66,0.03]
[1740568720350,24.8749,140.71,140.66,0.03]
[1740568720845,3.60922635,140.68,140.66,0.03]
[1740568722631,7.1088,140.67,140.66,0.03]
[1740568740142,25.3323,140.72,140.66,0.03]
[1740568740367,7.1063,140.72,140.66,83.11271827]
[1740568740670,7.1063,140.72,140.67,18.64964886]
[1740568741465,7.1688,140.73,140.67,25.75804886]
[1740568742262,7.1688,140.73,140.67,18.64964886]
[1740568742957,3.53645297,140.72,140.67,101.16372085]
[1740568743669,0.063,140.73,140.69,18.64964886]
[1740568743873,0.063,140.73,140.69,101.16372085]
[1740568744173,0.063,140.73,140.69,100.776176]
[1740568744946,0.063,140.73,140.7,0.14216157]
[1740568745347,7.1688,140.73,140.7,0.14216157]
[1740568747395,7.1688,140.73,140.69,100.776176]
[1740568752984,7.1688,140.73,140.69,107.883876]
[1740568753271,20.063,140.73,140.72,18.64964886]
[1740568753471,0.063,140.73,140.72,18.64964886]
[1740568755077,0.063,140.73,140.72,245.03866713]
[1740568757276,0.063,140.73,140.72,246.03866713]
[1740568757770,0.063,140.76,140.75,0.56864628]
[1740568758079,0.063,140.76,140.75,245.66357665]
[1740568758258,0.063,140.76,140.75,311.97036713]
[1740568758853,0.063,140.78,140.77,0.56864628]
[1740568759056,0.063,140.79,140.78,65.64049514]
[1740568759381,0.063,140.79,140.78,67.13121361]
[1740568759772,0.063,140.79,140.78,72.74369514]
[1740568759968,0.063,140.79,140.78,291.45776713]
[1740568761562,0.140524,140.82,140.8,21.21829514]
[1740568761757,0.140524,140.82,140.8,265.34290201]
[1740568761959,0.140524,140.82,140.8,262.85236713]
[1740568762776,0.140524,140.82,140.8,263.85236713]
[1740568764474,0.140524,140.82,140.8,270.95456713]
[1740568764677,0.140524,140.82,140.8,269.95456713]
[1740568764976,0.140524,140.82,140.8,270.95456713]
[1740568766191,0.140524,140.82,140.8,244.46592085]
[1740568766388,0.140524,140.82,140.8,237.36372085]
[1740568766600,0.140524,140.82,140.8,82.51407199]
[1740568766768,7.241924,140.82,140.79,82.51407199]
[1740568768403,10.82226178,140.82,140.79,82.51407199]
[1740568774703,0.140524,140.82,140.8,18.64964886]
[1740568774877,0.140524,140.82,140.8,19.21829514]
[1740568775492,0.140524,140.82,140.8,26.32049514]
[1740568775898,0.140524,140.82,140.8,108.83456713]
[1740568778696,0.140524,140.82,140.8,110.47706713]
[1740568781896,0.140524,140.82,140.8,246.67706713]
[1740568782404,0.140524,140.82,140.8,245.03456713]
[1740568789607,0.140524,140.82,140.8,267.43456713]
[1740568789786,0.140524,140.82,140.8,267.49756713]
[1740568789987,0.140524,140.82,140.8,311.23756713]
[1740568795197,0.140524,140.82,140.8,289.83756713]
[1740568795398,0.140524,140.82,140.8,244.52892085]
[1740568795617,0.140524,140.82,140.8,245.09756713]
[1740568802026,0.140524,140.82,140.8,249.34886401]
[1740568804017,0.063,140.83,140.8,314.48886401]
[1740568805016,0.063,140.83,140.8,315.48886401]
[1740568805800,0.063,140.83,140.82,19.21829514]
[1740568806131,0.063,140.83,140.82,25.43829514]
[1740568807925,0.063,140.83,140.82,32.53949514]
[1740568808222,0.063,140.83,140.82,36.79079202]
[1740568808702,0.063,140.83,140.82,255.50486401]
[1740568809218,0.063,140.83,140.82,276.90486401]
[1740568809417,0.063,140.83,140.82,255.50486401]
[1740568819533,0.063,140.83,140.82,276.90486401]
[1740568820132,0.063,140.83,140.82,255.50486401]
[1740568820626,0.063,140.83,140.82,111.91934087]
[1740568820930,0.063,140.83,140.82,119.30486401]
[1740568821507,0.063,140.83,140.82,115.05356713]
[1740568821813,0.063,140.83,140.82,107.95236713]
[1740568824434,0.063,140.83,140.82,112.21583009]
[1740568825336,0.063,140.83,140.82,4.26346296]
[1740568825723,0.063,140.83,140.81,82.57707199]
[1740568827433,0.063,140.83,140.81,0.063]
[1740568829253,7.1637,140.83,140.81,0.063]
[1740568830035,3.50316223,140.82,140.81,0.063]
[1740568831248,30.60436223,140.82,140.81,0.063]
[1740568832134,23.50316223,140.82,140.81,0.063]
[1740568833160,0.063,140.83,140.81,18.71264886]
[1740568833737,0.063,140.83,140.82,19.21829514]
[1740568834369,0.063,140.83,140.82,18.64964886]
[1740568835967,0.063,140.83,140.81,82.57707199]
[1740568836168,0.063,140.83,140.82,19.07613357]
[1740568838482,0.063,140.83,140.82,101.59020556]
[1740568841294,0.063,140.83,140.82,82.51407199]
[1740568844480,0.063,140.83,140.81,0.063]
[1740568847687,3.55975205,140.83,140.81,0.063]
[1740568853786,10.66045205,140.83,140.81,0.063]
[1740568861189,0.063,140.83,140.81,18.71264886]
[1740568862167,0.063,140.83,140.81,101.22672085]
[1740568862370,0.063,140.83,140.81,82.57707199]
[1740568862797,7.1639,140.83,140.81,82.57707199]
[1740568863302,0.063,140.83,140.81,82.57707199]
[1740568864195,0.12623686,140.82,140.81,82.36188795]
[1740568864991,0.12623686,140.82,140.8,0.063]
[1740568865503,7.1017,140.81,140.8,0.063]
[1740568870204,82.1,140.8,140.78,0.063]
[1740568870417,81.1,140.79,140.78,0.063]
[1740568871920,88.2027,140.79,140.78,0.063]
[1740568874729,91.76283415,140.79,140.78,0.063]
[1740568876121,3.56013415,140.79,140.78,0.063]
[1740568876622,23.56013415,140.79,140.78,0.063]
[1740568878927,30.66283415,140.79,140.78,0.063]
[1740568879813,23.56013415,140.79,140.78,0.063]
[1740568880032,30.66283415,140.79,140.78,0.063]
[1740568881424,10.66283415,140.79,140.78,0.063]
[1740568881621,30.66283415,140.79,140.78,0.063]
[1740568881918,111.76283415,140.79,140.78,0.063]
[1740568883494,92.90499572,140.79,140.78,0.0001]
[1740568883724,100.21949572,140.79,140.78,0.0001]
[1740568884304,106.86598043,140.79,140.78,0.0001]
[1740568884734,45.98002929,140.79,140.78,0.0001]
[1740568884900,1.0,140.74,140.72,0.063]
[1740568885227,25.872,140.72,140.66,0.03]
[1740568885527,81.1,140.71,140.66,0.03]
[1740568886118,81.24216157,140.7,140.66,0.03]
[1740568886331,20.0,140.67,140.66,0.03]
[1740568886915,23.60046946,140.67,140.66,0.03]
[1740568887114,33.51279744,140.67,140.66,0.03]
[1740568888702,30.70926946,140.67,140.66,0.03]
[1740568900648,23.60046946,140.67,140.66,0.03]
[1740568900947,3.60046946,140.67,140.66,0.03]
[1740568901245,20.0,140.67,140.66,0.03]
[1740568901455,81.13,140.72,140.66,0.03]
[1740568901624,7.107,140.71,140.66,0.03]
[1740568901823,20.0,140.68,140.66,0.03]
[1740568902333,7.107,140.71,140.66,0.03]
[1740568902519,3.59353615,140.68,140.66,0.03]
[1740568903034,23.59353615,140.68,140.66,0.03]
[1740568905080,3.59353615,140.68,140.66,0.03]
[1740568906431,10.70193615,140.68,140.66,0.03]
[1740568906855,30.70193615,140.68,140.66,0.03]
[1740568907551,30.70193615,140.68,140.66,0.03]
[1740568908958,7.23503686,140.67,140.66,0.03]
[1740568912758,7.23503686,140.67,140.62,0.03]
[1740568912759,20.0,140.64,140.62,0.03]
[1740568912937,2.0,140.65,140.58,1.5986]
[1740568913261,20.0,140.61,140.58,1.5986]
[1740568913562,27.1126,140.6,140.58,1.5986]
[1740568915137,20.0,140.59,140.58,1.5986]
[1740568916570,30.62593728,140.6,140.57,0.063]
[1740568916948,48.40683728,140.6,140.57,0.063]
[1740568917356,81.1,140.59,140.57,0.063]
[1740568917557,88.2133,140.58,140.57,0.063]
[1740568917760,9.25546157,140.58,140.57,0.063]
[1740568918068,20.0,140.55,140.51,0.03]
[1740568918276,21.0,140.55,140.51,0.03]
[1740568918575,22.0,140.55,140.51,0.03]
[1740568919371,20.0,140.52,140.51,0.03]
[1740568920754,21.14216157,140.52,140.51,0.03]
[1740568921247,20.0,140.51,140.5,0.03]
[1740568921690,27.1169,140.51,140.5,0.03]
[1740568923283,20.0,140.51,140.5,0.03]
[1740568923486,27.1169,140.51,140.5,0.03]
[1740568927284,23.50534136,140.52,140.5,0.03]
[1740568927883,3.50534136,140.52,140.5,0.03]
[1740568928381,0.12623686,140.53,140.5,0.03]
[1740568928585,0.12623686,140.53,140.5,6.1071]
[1740568929082,0.12623686,140.53,140.52,1.5563]
[1740568930298,81.1,140.59,140.53,19.07613357]
[1740568930590,7.1125,140.6,140.53,19.07613357]
[1740568931189,3.52564739,140.59,140.53,19.07613357]
[1740568931387,7.1125,140.6,140.54,7.1154]
[1740568932599,20.0,140.59,140.54,89.47728795]
[1740568933292,20.0,140.59,140.55,19.07613357]
[1740568933497,7.1113,140.62,140.55,19.07613357]
[1740568933498,7.1113,140.62,140.55,101.43802152]
[1740568934592,0.063,140.6,140.55,108.55262152]
[1740568936492,0.063,140.6,140.59,2.08068471]
[1740568936672,0.063,140.6,140.59,84.44257266]
[1740568937795,0.063,140.6,140.59,91.55537266]
[1740568938870,0.063,140.6,140.59,110.34718309]
[1740568942485,0.063,140.6,140.59,246.54718309]
[1740568947805,0.063,140.6,140.59,220.64257266]
[1740568948308,0.063,140.6,140.59,84.44257266]
[1740568952307,0.063,140.6,140.59,84.01608795]
[1740568952602,0.063,140.6,140.59,82.36188795]
[1740568954113,0.063,140.6,140.59,81.96388729]
[1740568956417,0.063,140.6,140.56,88.18388729]
[1740568957115,0.063,140.6,140.56,81.96388729]
[1740568958189,7.1753,140.6,140.56,81.96388729]
[1740568958607,0.063,140.6,140.56,89.07818729]
[1740568964013,0.063,140.6,140.57,0.42648471]
[1740568964222,0.063,140.6,140.57,101.04002086]
[1740568964606,0.063,140.6,140.58,7.1133]
[1740568965019,0.063,140.6,140.59,6.22]
[1740568965826,0.063,140.6,140.59,13.3328]
[1740568966903,0.063,140.6,140.59,114.37282086]
[1740568969213,0.063,140.6,140.59,257.35968243]
[1740568969901,0.063,140.6,140.59,260.92298243]
[1740568970230,10.61804564,140.69,140.61,0.14216157]
[1740568970418,10.61804564,140.69,140.62,19.07613357]
[1740568971417,10.61804564,140.69,140.63,7.1108]
[1740568971606,10.61804564,140.69,140.64,25.29613357]
[1740568971802,10.61804564,140.69,140.64,107.26002086]
[1740568981433,7.108,140.69,140.65,1.5466]
[1740568982440,20.063,140.69,140.65,8.6563]
[1740568984425,20.063,140.69,140.65,90.62018729]
[1740568984620,27.1708,140.69,140.65,83.51048729]
[1740568985617,27.1708,140.69,140.65,81.96388729]
[1740568985818,27.1708,140.69,140.61,83.59618729]
[1740568986030,126.0403,140.69,140.61,83.59618729]
[1740568986836,20.0,140.65,140.61,81.96388729]
[1740568987043,81.1,140.67,140.6,6.22]
[1740568988243,24.8826,140.66,140.6,6.22]
[1740568990343,24.8826,140.66,140.59,0.03]
[1740568993840,27.1109,140.63,140.59,0.03]
[1740568994423,30.73761713,140.63,140.59,0.03]
[1740569004949,20.0,140.6,140.59,0.03]
[1740569005330,81.24216157,140.6,140.59,0.03]
[1740569005658,81.24216157,140.6,140.53,0.03]
[1740569005659,20.0,140.56,140.53,0.03]
[1740569005845,20.0,140.54,140.53,0.03]
[1740569006430,81.1,140.55,140.53,0.03]
[1740569007246,0.14216157,140.54,140.53,0.03]
[1740569007656,7.25756157,140.54,140.53,0.03]
[1740569008152,88.35756157,140.54,140.53,0.03]
[1740569011261,91.90231447,140.54,140.53,0.03]
[1740569012862,20.0,140.51,140.5,0.03]
[1740569014156,27.1169,140.51,140.5,0.03]
[1740569027179,3.6077529,140.54,140.5,0.03]
[1740569028382,20.0,140.52,140.5,0.03]
[1740569028758,20.0,140.51,140.5,0.03]
[1740569031466,7.1165,140.52,140.5,0.03]
[1740569032768,20.0,140.51,140.5,0.03]
[1740569033898,27.1164,140.52,140.5,0.03]
[1740569038062,27.1164,140.52,140.47,0.03]
[1740569038063,20.0,140.48,140.47,0.03]
[1740569038263,27.1184,140.48,140.47,0.03]
[1740569039282,20.0,140.48,140.47,0.03]
[1740569041197,7.118,140.49,140.47,0.03]
[1740569041780,3.50690602,140.48,140.47,0.03]
[1740569043701,23.50690602,140.48,140.47,0.03]
[1740569044000,81.163,140.53,140.47,0.03]
[1740569044401,0.063,140.5,140.48,1.5728]
[1740569045184,0.063,140.5,140.48,8.6911]
[1740569047678,0.063,140.5,140.49,7.54438471]
[1740569048590,0.063,140.5,140.48,90.65488729]
[1740569060010,0.063,140.5,140.48,81.96388729]
[1740569060229,0.063,140.5,140.47,0.03]
[1740569061914,81.163,140.5,140.47,0.03]
[1740569062216,7.1179,140.49,140.47,0.03]
[1740569064517,10.69703098,140.49,140.47,0.03]
[1740569069330,0.14216157,140.48,140.47,0.03]
[1740569069626,18.79181043,140.48,140.47,0.03]
[1740569070127,0.14216157,140.48,140.47,0.03]
[1740569070523,10.69703098,140.49,140.47,0.03]
[1740569076903,18.79181043,140.48,140.47,0.0001]
[1740569077104,20.0,140.45,140.44,0.03]
[1740569079706,27.1199,140.45,140.44,0.03]
[1740569080133,27.1199,140.45,140.43,0.03]
[1740569080134,0.14216157,140.44,140.43,0.03]
[1740569080433,20.0,140.4,140.38,0.03]
[1740569080603,101.24216157,140.39,140.38,0.03]
[1740569080807,20.14216157,140.39,140.38,0.03]
[1740569081132,18.79181043,140.39,140.38,0.03]
[1740569081326,18.64964886,140.33,140.28,55.9620387]
[1740569081629,7.128,140.29,140.28,55.9620387]
[1740569082131,25.91981043,140.29,140.28,41.6597879]
[1740569082302,21.56864628,140.27,140.26,74.61391811]
[1740569082504,21.56864628,140.27,140.26,60.31166731]
[1740569082729,40.21829514,140.27,140.26,46.00941651]
[1740569083119,40.21829514,140.27,140.26,31.70716571]
[1740569083318,40.21829514,140.27,140.26,10.9882445]
[1740569083527,1.56864628,140.26,140.25,64.34044015]
[1740569084027,0.14216157,140.24,140.23,5.80211458]
[1740569085133,3.57949581,140.27,140.23,5.80211458]
[1740569086033,20.0,140.26,140.23,5.80211458]
[1740569088332,20.0,140.26,140.23,5.62461458]
[1740569088711,3.57949581,140.27,140.23,5.62461458]
[1740569088914,23.57949581,140.27,140.23,5.62461458]
[1740569089314,20.0,140.27,140.23,5.62461458]
[1740569089608,87.32,140.31,140.23,12.75571458]
[1740569089814,20.0,140.27,140.23,12.75571458]
[1740569090230,20.0,140.27,140.23,5.62461458]
[1740569090951,20.0,140.27,140.23,12.75561458]
[1740569091418,20.0,140.27,140.23,5.62461458]
[1740569092414,20.063,140.27,140.23,5.62461458]
[1740569092614,0.063,140.27,140.23,5.62461458]
[1740569093124,20.063,140.27,140.23,5.62461458]
[1740569094131,0.063,140.27,140.23,82.390372]
[1740569094442,0.063,140.27,140.24,1.5451]
[1740569094916,0.063,140.27,140.25,7.1301]
[1740569095714,0.063,140.27,140.24,8.6756]
[1740569096331,0.063,140.27,140.24,1.5451]
[1740569096640,0.063,140.27,140.24,14.7377]
[1740569097023,0.063,140.27,140.22,0.03]
[1740569098739,20.0,140.25,140.22,0.03]
[1740569098923,18.79181043,140.24,140.22,0.03]
[1740569100136,20.0,140.23,140.22,0.03]
[1740569100650,7.131,140.24,140.22,0.03]
[1740569101030,20.0,140.23,140.22,0.03]
[1740569102023,38.79181043,140.23,140.22,0.03]
[1740569102351,54.56939514,140.23,140.22,0.03]
[1740569103263,19.64964886,140.21,140.2,1.9579067]
[1740569103753,19.21829514,140.21,140.2,1.9579067]
[1740569104129,7.27426157,140.21,140.2,1.9579067]
[1740569104331,7.132,140.22,140.2,1.9579067]
[1740569104723,7.132,140.22,140.13,238.34843615]
[1740569104923,7.132,140.22,140.14,19.07613357]
[1740569105224,7.132,140.22,140.13,219.69878729]
[1740569105439,7.132,140.22,140.13,1.5349]
[1740569105440,20.0,140.18,140.13,1.5349]
[1740569106340,23.55675653,140.18,140.13,1.5349]
[1740569106642,7.1341,140.17,140.13,1.5349]
[1740569106848,7.1341,140.17,140.13,3.0451087]
[1740569107228,7.1341,140.17,140.13,1.5402087]
[1740569107429,10.69055653,140.18,140.13,1.5402087]
[1740569107769,7.1306,140.24,140.17,1.5456]
[1740569107948,7.1306,140.24,140.18,0.42648471]
[1740569108126,7.1306,140.24,140.17,83.50948729]
[1740569109624,88.2302,140.25,140.18,19.07613357]
[1740569109822,88.2302,140.25,140.18,6.28]
[1740569110333,23.72,140.18,140.17,83.50948729]
[1740569111847,23.72,140.18,140.17,83.935972]
[1740569112037,23.72,140.18,140.17,91.070072]
[1740569112235,23.72,140.18,140.17,109.71972086]
[1740569112435,23.72,140.18,140.17,102.58562086]
[1740569113036,23.72,140.18,140.17,109.71972086]
[1740569115279,23.72,140.18,140.17,102.58562086]
[1740569116051,23.72,140.18,140.17,109.71972086]
[1740569116555,23.72,140.18,140.17,110.86188243]
[1740569118164,22.0534,140.18,140.17,248.06188243]
[1740569118459,20.3868,140.18,140.17,248.06188243]
[1740569119147,20.3868,140.18,140.17,247.92135843]
[1740569120158,20.3868,140.18,140.17,290.80135843]
[1740569121061,20.3868,140.18,140.17,289.80135843]
[1740569121258,20.3868,140.18,140.17,246.35271215]
[1740569121639,20.3868,140.18,140.17,246.92135843]
[1740569121850,20.3868,140.18,140.17,248.43156713]
[1740569126565,20.3868,140.18,140.17,249.43156713]
[1740569126968,20.3868,140.18,140.17,270.87156713]
[1740569128141,20.3868,140.18,140.17,313.75156713]
[1740569128349,0.063,140.23,140.21,0.42648471]
[1740569128564,0.063,140.23,140.21,82.390372]
[1740569130556,0.063,140.23,140.21,81.96388729]
[1740569133378,0.063,140.23,140.17,1.5102087]
[1740569133574,81.163,140.23,140.17,1.5102087]
[1740569133881,1.5405,140.19,140.17,1.5102087]
[1740569134470,7.1336,140.18,140.17,1.5102087]
[1740569137878,7.1336,140.18,140.16,0.03]
[1740569139267,0.14216157,140.17,140.16,0.03]
[1740569139676,9.92994611,140.18,140.16,0.03]
[1740569139992,7.1336,140.18,140.16,0.03]
[1740569141481,1.5788,140.21,140.17,0.42648471]
[1740569141699,7.1945,140.23,140.17,19.07613357]
[1740569141999,7.1945,140.23,140.17,101.04002086]
[1740569142506,7.1945,140.23,140.17,81.96388729]
[1740569142684,25.0223,140.23,140.17,81.96388729]
[1740569143083,81.1,140.22,140.16,6.39]
[1740569143303,81.1,140.22,140.16,0.03]
[1740569144615,7.1321,140.21,140.16,0.03]
[1740569144793,88.2317,140.22,140.16,0.45648471]
[1740569145191,7.1942,140.23,140.16,82.420372]
[1740569145589,0.063,140.23,140.18,0.42648471]
[1740569146688,0.063,140.23,140.19,0.14216157]
[1740569147888,0.063,140.23,140.21,0.14216157]
[1740569148097,0.063,140.23,140.22,26.57829514]
[1740569148494,0.063,140.23,140.22,25.57829514]
[1740569148683,0.063,140.23,140.22,81.96388729]
[1740569149010,0.063,140.23,140.19,6.36]
[1740569149217,0.063,140.23,140.18,81.96388729]
[1740569149383,0.063,140.23,140.17,137.7361]
[1740569149384,20.0,140.21,140.16,0.03]
[1740569149591,20.14216157,140.17,140.16,0.03]
[1740569149785,101.1,140.17,140.16,0.03]
[1740569150012,20.0,140.17,140.16,0.03]
[1740569150183,7.9126,140.21,140.16,0.03]
[1740569150382,20.0,140.19,140.16,0.03]
[1740569151309,15.0448,140.21,140.16,0.03]
[1740569151688,7.9126,140.21,140.16,0.03]
[1740569151886,6.38,140.21,140.16,0.45648471]
[1740569152294,13.5122,140.21,140.16,0.45648471]
[1740569152494,13.5122,140.21,140.16,0.03]
[1740569154606,0.063,140.23,140.16,218.33604886]
[1740569154804,0.063,140.23,140.18,18.64964886]
[1740569155016,0.063,140.23,140.18,25.06964886]
[1740569155220,0.063,140.23,140.18,32.20324886]
[1740569155606,0.063,140.23,140.18,25.06964886]
[1740569155811,0.063,140.23,140.21,0.42648471]
[1740569156113,0.063,140.23,140.21,82.390372]
[1740569157103,0.063,140.23,140.22,18.64964886]
[1740569157608,0.063,140.23,140.22,0.42648471]
[1740569159120,0.063,140.23,140.21,81.96388729]
[1740569159417,0.063,140.23,140.19,81.96388729]
[1740569161103,7.1941,140.23,140.19,81.96388729]
[1740569163097,0.063,140.23,140.2,0.28432314]
[1740569163514,0.063,140.23,140.2,82.24821043]
[1740569163928,0.063,140.23,140.22,0.42648471]
[1740569164400,0.063,140.23,140.22,244.98648243]
[1740569165213,0.063,140.23,140.22,252.11808243]
[1740569165409,0.063,140.23,140.22,251.11808243]
[1740569165612,0.063,140.23,140.22,252.11808243]
[1740569169996,0.063,140.23,140.22,243.41783615]
[1740569170205,0.063,140.23,140.22,218.16388729]
[1740569170402,0.063,140.23,140.22,81.96388729]
[1740569171011,0.063,140.23,140.22,82.24821043]
[1740569172925,0.063,140.23,140.22,81.96388729]
[1740569174036,0.063,140.23,140.22,82.24821043]
[1740569175347,0.063,140.23,140.22,81.96388729]
[1740569175909,0.063,140.23,140.19,218.16388729]
[1740569176426,20.063,140.23,140.19,81.96388729]
[1740569176811,20.0,140.22,140.19,81.96388729]
[1740569177334,7.1321,140.21,140.16,81.99388729]
[1740569177534,20.0,140.18,140.16,0.03]
[1740569177739,20.0,140.17,140.16,0.03]
[1740569178613,27.1341,140.17,140.16,0.03]
[1740569179251,7.1331,140.19,140.16,0.03]
[1740569179536,8.0559,140.2,140.16,0.03]
[1740569180137,1.6159,140.2,140.16,0.03]
[1740569180436,8.7487,140.2,140.16,0.03]
[1740569180621,10.09032333,140.22,140.16,82.13604886]
[1740569180826,7.1321,140.22,140.17,0.28432314]
[1740569181033,7.1321,140.22,140.17,82.24821043]
[1740569181424,7.1321,140.22,140.17,81.96388729]
[1740569182117,7.1943,140.23,140.17,81.96388729]
[1740569182312,6.3678,140.18,140.16,0.03]